[Event "Titled Tuesday Blitz July 26 Early 2022"]
[White "Rohith Krishna S"]
[Black "Timofeev, Artyom"]
[WhiteFideId "46617051"]
[BlackFideId "4140419"]
[WhiteElo "2117"]
[BlackElo "2578"]
[Result "0-1"]
[Round "08"]
[TimeControl "180+1"]
[Date "2022.07.26"]
[WhiteClock "0:00:01"]
[BlackClock "0:00:13"]

1. Nf3 {[%clk 0:03:00]}  d5 {[%clk 0:02:59]} 2. c4 {[%clk 0:03:01]}  dxc4 {[%clk 0:02:58]} 3. g3 {[%clk 0:03:01]}  b5 {[%clk 0:02:57]} 4. Bg2 {[%clk 0:03:01]}  Bb7 {[%clk 0:02:57]} 5. O-O {[%clk 0:03:02]}  Nf6 {[%clk 0:02:57]} 6. a4 {[%clk 0:03:02]}  b4 {[%clk 0:02:54]} 7. Qc2 {[%clk 0:03:00]}  Bd5 {[%clk 0:02:54]} 8. d4 {[%clk 0:02:51]}  cxd3 {[%clk 0:02:52]} 9. exd3 {[%clk 0:02:52]}  e6 {[%clk 0:02:51]} 10. Nbd2 {[%clk 0:02:52]}  Be7 {[%clk 0:02:51]} 11. Ne4 {[%clk 0:02:53]}  O-O {[%clk 0:02:50]} 12. Be3 {[%clk 0:02:53]}  Nbd7 {[%clk 0:02:48]} 13. a5 {[%clk 0:02:52]}  c5 {[%clk 0:02:45]} 14. Nfd2 {[%clk 0:02:51]}  Rc8 {[%clk 0:02:40]} 15. Nc4 {[%clk 0:02:50]}  Bxc4 {[%clk 0:02:24]} 16. dxc4 {[%clk 0:02:48]}  Qc7 {[%clk 0:02:20]} 17. Bf4 {[%clk 0:02:45]}  e5 {[%clk 0:02:19]} 18. Be3 {[%clk 0:02:45]}  Rfd8 {[%clk 0:02:19]} 19. h3 {[%clk 0:02:41]}  Nxe4 {[%clk 0:02:14]} 20. Bxe4 {[%clk 0:02:39]}  Nf6 {[%clk 0:02:14]} 21. Bg2 {[%clk 0:02:37]}  Rb8 {[%clk 0:02:10]} 22. g4 {[%clk 0:02:35]}  b3 {[%clk 0:02:10]} 23. Qc3 {[%clk 0:02:34]}  h6 {[%clk 0:02:05]} 24. Ra3 {[%clk 0:02:32]}  e4 {[%clk 0:01:55]} 25. Rxb3 {[%clk 0:02:31]}  Rxb3 {[%clk 0:01:53]} 26. Qxb3 {[%clk 0:02:32]}  Qxa5 {[%clk 0:01:53]} 27. Qb7 {[%clk 0:02:32]}  Kf8 {[%clk 0:01:52]} 28. Bxe4 {[%clk 0:02:23]}  Qb4 {[%clk 0:01:42]} 29. Qxb4 {[%clk 0:02:20]}  cxb4 {[%clk 0:01:42]} 30. Bb7 {[%clk 0:02:20]}  a5 {[%clk 0:01:41]} 31. c5 {[%clk 0:02:13]}  Nd5 {[%clk 0:01:32]} 32. c6 {[%clk 0:02:05]}  Nxe3 {[%clk 0:01:30]} 33. fxe3 {[%clk 0:02:05]}  Bd6 {[%clk 0:01:29]} 34. Ba6 {[%clk 0:01:55]}  Ke7 {[%clk 0:01:27]} 35. Bc4 {[%clk 0:01:55]}  f6 {[%clk 0:01:27]} 36. e4 {[%clk 0:01:52]}  Bc5+ {[%clk 0:01:22]} 37. Kg2 {[%clk 0:01:52]}  Rd2+ {[%clk 0:01:22]} 38. Kf3 {[%clk 0:01:52]}  Rxb2 {[%clk 0:01:08]} 39. Ra1 {[%clk 0:01:47]}  Rc2 {[%clk 0:01:07]} 40. Bb5 {[%clk 0:01:23]}  b3 {[%clk 0:00:57]} 41. Ba4 {[%clk 0:01:05]}  b2 {[%clk 0:00:48]} 42. Rb1 {[%clk 0:01:05]}  Rf2+ {[%clk 0:00:42]} 43. Kg3 {[%clk 0:01:05]}  Rd2 {[%clk 0:00:42]} 44. Kf3 {[%clk 0:01:05]}  Bd6 {[%clk 0:00:39]} 45. Ke3 {[%clk 0:01:00]}  Rh2 {[%clk 0:00:39]} 46. Kd4 {[%clk 0:00:53]}  Kd8 {[%clk 0:00:37]} 47. Kd5 {[%clk 0:00:51]}  Kc7 {[%clk 0:00:37]} 48. Ke6 {[%clk 0:00:51]}  Be5 {[%clk 0:00:36]} 49. Rd1 {[%clk 0:00:47]}  Kb6 {[%clk 0:00:36]} 50. Rd7 {[%clk 0:00:42]}  Rxh3 {[%clk 0:00:33]} 51. Rb7+ {[%clk 0:00:41]}  Kc5 {[%clk 0:00:33]} 52. Rb5+ {[%clk 0:00:37]}  Kc4 {[%clk 0:00:28]} 53. Rb7 {[%clk 0:00:15]}  Re3 {[%clk 0:00:19]} 54. Kf5 {[%clk 0:00:13]}  g6+ {[%clk 0:00:19]} 55. Kxg6 {[%clk 0:00:13]}  Rxe4 {[%clk 0:00:19]} 56. Kh5 {[%clk 0:00:05]}  Kd5 {[%clk 0:00:17]} 57. c7 {[%clk 0:00:03]}  Bxc7 {[%clk 0:00:15]} 58. Bc2 {[%clk 0:00:04]}  Re5+ {[%clk 0:00:14]} 59. Kxh6 {[%clk 0:00:03]}  Bd6 {[%clk 0:00:14]} 60. Kg6 {[%clk 0:00:02]}  Ba3 {[%clk 0:00:13]} 61. Kxf6 {[%clk 0:00:02]}  Re2 {[%clk 0:00:14]} 62. Bf5 {[%clk 0:00:02]}  Kc6 {[%clk 0:00:13]} 63. Rb8 {[%clk 0:00:02]}  Bb4 {[%clk 0:00:12]} 64. g5 {[%clk 0:00:02]}  Re1 {[%clk 0:00:12]} 65. g6 {[%clk 0:00:01]}  b1=Q {[%clk 0:00:12]} 66. Bxb1 {[%clk 0:00:01]}  Rxb1 {[%clk 0:00:13]} 67. g7 {[%clk 0:00:01]}  Bc3+ {[%clk 0:00:13]} 0-1


[Site "https://www.chess.com"]

[Event "Titled Tuesday Blitz July 26 Early 2022"]
[White "Rychagov, Andrey"]
[Black "Kravtsiv, Martyn"]
[WhiteFideId "4119932"]
[BlackFideId "14113147"]
[WhiteElo "2481"]
[BlackElo "2694"]
[Result "0-1"]
[Round "08"]
[TimeControl "180+1"]
[Date "2022.07.26"]
[WhiteClock "0:00:44"]
[BlackClock "0:01:46"]

1. d4 {[%clk 0:03:00]}  d5 {[%clk 0:02:59]} 2. c4 {[%clk 0:03:01]}  e6 {[%clk 0:02:59]} 3. Nf3 {[%clk 0:03:00]}  Nf6 {[%clk 0:02:58]} 4. Nc3 {[%clk 0:02:59]}  Nbd7 {[%clk 0:02:57]} 5. Bf4 {[%clk 0:02:58]}  Bb4 {[%clk 0:02:57]} 6. e3 {[%clk 0:02:53]}  c5 {[%clk 0:02:54]} 7. dxc5 {[%clk 0:02:47]}  Qa5 {[%clk 0:02:50]} 8. Nd2 {[%clk 0:02:29]}  O-O {[%clk 0:02:40]} 9. Qc2 {[%clk 0:02:25]}  Nxc5 {[%clk 0:02:34]} 10. Be2 {[%clk 0:02:11]}  Nfe4 {[%clk 0:02:32]} 11. Ndxe4 {[%clk 0:02:00]}  Nxe4 {[%clk 0:02:32]} 12. O-O {[%clk 0:01:58]}  Bxc3 {[%clk 0:02:15]} 13. bxc3 {[%clk 0:01:55]}  Nxc3 {[%clk 0:02:15]} 14. Bd3 {[%clk 0:01:52]}  dxc4 {[%clk 0:02:05]} 15. Bxh7+ {[%clk 0:01:36]}  Kh8 {[%clk 0:02:04]} 16. Bg3 {[%clk 0:01:27]}  Bd7 {[%clk 0:01:54]} 17. Rac1 {[%clk 0:01:06]}  Rac8 {[%clk 0:01:52]} 18. Qd2 {[%clk 0:00:44]}  Kxh7 {[%clk 0:01:47]} 19. Qxd7 {[%clk 0:00:44]}  Ne2+ {[%clk 0:01:46]} 0-1


[Site "https://www.chess.com"]

[Event "Titled Tuesday Blitz July 26 Early 2022"]
[White "Sadubayev, Airat"]
[Black "Prestia, Paris"]
[WhiteFideId "13713264"]
[BlackFideId "30925959"]
[WhiteElo "2163"]
[BlackElo "2626"]
[Result "1/2-1/2"]
[Round "08"]
[TimeControl "180+1"]
[Date "2022.07.26"]
[WhiteClock "0:00:20"]
[BlackClock "0:00:19"]

1. d4 {[%clk 0:02:57]}  Nf6 {[%clk 0:03:00]} 2. c4 {[%clk 0:02:57]}  e6 {[%clk 0:02:59]} 3. g3 {[%clk 0:02:52]}  Bb4+ {[%clk 0:02:57]} 4. Bd2 {[%clk 0:02:50]}  Qe7 {[%clk 0:02:57]} 5. Nf3 {[%clk 0:02:43]}  Ne4 {[%clk 0:02:57]} 6. Bg2 {[%clk 0:02:40]}  O-O {[%clk 0:02:55]} 7. O-O {[%clk 0:02:36]}  Nxd2 {[%clk 0:02:55]} 8. Nbxd2 {[%clk 0:02:37]}  c6 {[%clk 0:02:53]} 9. a3 {[%clk 0:02:37]}  Ba5 {[%clk 0:02:53]} 10. e4 {[%clk 0:02:36]}  Bc7 {[%clk 0:02:45]} 11. Re1 {[%clk 0:02:30]}  d6 {[%clk 0:02:43]} 12. Qc2 {[%clk 0:02:29]}  Nd7 {[%clk 0:02:43]} 13. Rad1 {[%clk 0:02:29]}  e5 {[%clk 0:02:37]} 14. d5 {[%clk 0:02:28]}  c5 {[%clk 0:02:37]} 15. h3 {[%clk 0:02:20]}  Nf6 {[%clk 0:02:31]} 16. Nh2 {[%clk 0:02:16]}  a6 {[%clk 0:02:28]} 17. a4 {[%clk 0:02:15]}  b5 {[%clk 0:02:27]} 18. axb5 {[%clk 0:02:13]}  axb5 {[%clk 0:02:28]} 19. cxb5 {[%clk 0:02:14]}  Bd7 {[%clk 0:02:29]} 20. Bf1 {[%clk 0:02:11]}  Rfb8 {[%clk 0:02:28]} 21. Ra1 {[%clk 0:02:10]}  Rxa1 {[%clk 0:02:25]} 22. Rxa1 {[%clk 0:02:11]}  Bxb5 {[%clk 0:02:26]} 23. Bxb5 {[%clk 0:02:11]}  Rxb5 {[%clk 0:02:26]} 24. Ra8+ {[%clk 0:02:10]}  Rb8 {[%clk 0:02:27]} 25. Rxb8+ {[%clk 0:02:10]}  Bxb8 {[%clk 0:02:28]} 26. Qb3 {[%clk 0:02:10]}  Qa7 {[%clk 0:02:27]} 27. Ng4 {[%clk 0:02:08]}  Nd7 {[%clk 0:02:23]} 28. Nc4 {[%clk 0:02:00]}  h5 {[%clk 0:02:22]} 29. Nge3 {[%clk 0:01:59]}  g6 {[%clk 0:02:22]} 30. Kg2 {[%clk 0:01:52]}  Kg7 {[%clk 0:02:20]} 31. Qa3 {[%clk 0:01:51]}  Qb7 {[%clk 0:02:16]} 32. Na5 {[%clk 0:01:43]}  Qb5 {[%clk 0:02:07]} 33. Nc6 {[%clk 0:01:39]}  Nf6 {[%clk 0:02:08]} 34. Kf3 {[%clk 0:01:29]}  Bc7 {[%clk 0:01:38]} 35. Qa7 {[%clk 0:01:27]}  Bb6 {[%clk 0:01:12]} 36. Qb7 {[%clk 0:01:22]}  Qd3 {[%clk 0:00:55]} 37. Qxb6 {[%clk 0:01:12]}  Qxe4+ {[%clk 0:00:55]} 38. Ke2 {[%clk 0:01:11]}  Nxd5 {[%clk 0:00:56]} 39. Qb5 {[%clk 0:01:00]}  Nxe3 {[%clk 0:00:46]} 40. fxe3 {[%clk 0:01:01]}  Qc2+ {[%clk 0:00:28]} 41. Ke1 {[%clk 0:00:59]}  Qc1+ {[%clk 0:00:19]} 42. Kf2 {[%clk 0:00:56]}  Qh1 {[%clk 0:00:20]} 43. Nd8 {[%clk 0:00:51]}  Qh2+ {[%clk 0:00:19]} 44. Kf3 {[%clk 0:00:49]}  Qh1+ {[%clk 0:00:19]} 45. Kf2 {[%clk 0:00:49]}  Qh2+ {[%clk 0:00:20]} 46. Kf3 {[%clk 0:00:19]}  Qh1+ {[%clk 0:00:19]} 47. Kf2 {[%clk 0:00:20]} 1/2-1/2


[Site "https://www.chess.com"]

[Event "Titled Tuesday Blitz July 26 Early 2022"]
[White "Sarana, Alexey"]
[Black "Lazavik, Denis"]
[WhiteFideId "24133795"]
[BlackFideId "13515110"]
[WhiteElo "2666"]
[BlackElo "2437"]
[Result "1-0"]
[Round "08"]
[TimeControl "180+1"]
[Date "2022.07.26"]
[WhiteClock "0:01:36"]
[BlackClock "0:00:06"]

1. c4 {[%clk 0:03:00]}  Nf6 {[%clk 0:03:00]} 2. d4 {[%clk 0:03:00]}  e6 {[%clk 0:03:00]} 3. Nc3 {[%clk 0:03:01]}  Bb4 {[%clk 0:03:00]} 4. e3 {[%clk 0:03:00]}  O-O {[%clk 0:03:01]} 5. Bd3 {[%clk 0:03:00]}  c5 {[%clk 0:03:01]} 6. a3 {[%clk 0:02:59]}  Bxc3+ {[%clk 0:03:00]} 7. bxc3 {[%clk 0:03:00]}  Nc6 {[%clk 0:03:00]} 8. Rb1 {[%clk 0:02:58]}  d6 {[%clk 0:02:50]} 9. Ne2 {[%clk 0:02:55]}  b6 {[%clk 0:02:45]} 10. e4 {[%clk 0:02:53]}  Ne8 {[%clk 0:02:41]} 11. O-O {[%clk 0:02:52]}  Ba6 {[%clk 0:02:41]} 12. f4 {[%clk 0:02:50]}  Na5 {[%clk 0:02:41]} 13. Ng3 {[%clk 0:02:44]}  Bxc4 {[%clk 0:02:36]} 14. f5 {[%clk 0:02:42]}  Bxd3 {[%clk 0:02:03]} 15. Qxd3 {[%clk 0:02:43]}  cxd4 {[%clk 0:02:00]} 16. cxd4 {[%clk 0:02:42]}  Qc7 {[%clk 0:01:55]} 17. Bd2 {[%clk 0:02:31]}  Nf6 {[%clk 0:01:36]} 18. Rbc1 {[%clk 0:02:26]}  Qd7 {[%clk 0:01:35]} 19. Bg5 {[%clk 0:02:25]}  Ng4 {[%clk 0:00:41]} 20. Qf3 {[%clk 0:02:12]}  f6 {[%clk 0:00:24]} 21. Qxg4 {[%clk 0:02:11]}  fxg5 {[%clk 0:00:23]} 22. fxe6 {[%clk 0:02:11]}  Qa4 {[%clk 0:00:23]} 23. Nf5 {[%clk 0:02:07]}  g6 {[%clk 0:00:22]} 24. Qxg5 {[%clk 0:02:03]}  Kh8 {[%clk 0:00:22]} 25. e7 {[%clk 0:02:01]}  Rf7 {[%clk 0:00:21]} 26. Nh6 {[%clk 0:01:51]}  Qxd4+ {[%clk 0:00:20]} 27. Kh1 {[%clk 0:01:52]}  Rf2 {[%clk 0:00:11]} 28. Nf7+ {[%clk 0:01:38]}  Kg8 {[%clk 0:00:07]} 29. Nd8 {[%clk 0:01:38]}  Rxf1+ {[%clk 0:00:05]} 30. Rxf1 {[%clk 0:01:39]}  Qxe4 {[%clk 0:00:06]} 31. Qf6 {[%clk 0:01:36]} 1-0


[Site "https://www.chess.com"]

[Event "Titled Tuesday Blitz July 26 Early 2022"]
[White "Schekachikhin, Maksim"]
[Black "Turzo, Attila"]
[WhiteFideId "24177830"]
[BlackFideId "704954"]
[WhiteElo "2239"]
[BlackElo "2477"]
[Result "1-0"]
[Round "08"]
[TimeControl "180+1"]
[Date "2022.07.27"]
[WhiteClock "0:00:54"]
[BlackClock "0:00:10"]

1. d4 {[%clk 0:02:58]}  Nf6 {[%clk 0:02:59]} 2. Bg5 {[%clk 0:02:58]}  Ne4 {[%clk 0:02:51]} 3. Bf4 {[%clk 0:02:57]}  d5 {[%clk 0:02:44]} 4. Nd2 {[%clk 0:02:57]}  Nf6 {[%clk 0:02:39]} 5. e3 {[%clk 0:02:57]}  g6 {[%clk 0:02:39]} 6. Ngf3 {[%clk 0:02:54]}  Bg7 {[%clk 0:02:39]} 7. c4 {[%clk 0:02:53]}  O-O {[%clk 0:02:38]} 8. h3 {[%clk 0:02:53]}  c5 {[%clk 0:02:37]} 9. dxc5 {[%clk 0:02:52]}  Qa5 {[%clk 0:02:35]} 10. Be2 {[%clk 0:02:51]}  dxc4 {[%clk 0:02:29]} 11. Bxc4 {[%clk 0:02:50]}  Nc6 {[%clk 0:02:16]} 12. O-O {[%clk 0:02:50]}  Qxc5 {[%clk 0:02:16]} 13. Rc1 {[%clk 0:02:44]}  Qb6 {[%clk 0:02:13]} 14. Bb3 {[%clk 0:02:37]}  Na5 {[%clk 0:02:05]} 15. Nc4 {[%clk 0:02:33]}  Nxc4 {[%clk 0:02:05]} 16. Rxc4 {[%clk 0:02:33]}  Be6 {[%clk 0:02:01]} 17. Rc7 {[%clk 0:02:31]}  Bxb3 {[%clk 0:01:57]} 18. Qxb3 {[%clk 0:02:32]}  Qxb3 {[%clk 0:01:43]} 19. axb3 {[%clk 0:02:33]}  Nd5 {[%clk 0:01:33]} 20. Rxb7 {[%clk 0:02:31]}  Nxf4 {[%clk 0:01:32]} 21. exf4 {[%clk 0:02:32]}  Bxb2 {[%clk 0:01:33]} 22. Rxe7 {[%clk 0:02:31]}  Rfb8 {[%clk 0:01:30]} 23. Rb1 {[%clk 0:02:21]}  Bf6 {[%clk 0:01:26]} 24. Rd7 {[%clk 0:02:18]}  Rb5 {[%clk 0:01:20]} 25. g3 {[%clk 0:02:08]}  a5 {[%clk 0:01:20]} 26. Nd4 {[%clk 0:01:57]}  Bxd4 {[%clk 0:01:13]} 27. Rxd4 {[%clk 0:01:58]}  a4 {[%clk 0:01:13]} 28. b4 {[%clk 0:01:55]}  a3 {[%clk 0:01:11]} 29. Ra1 {[%clk 0:01:54]}  a2 {[%clk 0:01:06]} 30. Rd2 {[%clk 0:01:52]}  Rxb4 {[%clk 0:01:06]} 31. Rdxa2 {[%clk 0:01:48]}  Rxa2 {[%clk 0:01:04]} 32. Rxa2 {[%clk 0:01:49]}  h5 {[%clk 0:01:05]} 33. Kg2 {[%clk 0:01:46]}  Kg7 {[%clk 0:00:53]} 34. Ra5 {[%clk 0:01:44]}  f6 {[%clk 0:00:51]} 35. h4 {[%clk 0:01:41]}  f5 {[%clk 0:00:51]} 36. Rd5 {[%clk 0:01:32]}  Kf6 {[%clk 0:00:50]} 37. Kf3 {[%clk 0:01:32]}  Rb3+ {[%clk 0:00:50]} 38. Ke2 {[%clk 0:01:32]}  Rb2+ {[%clk 0:00:50]} 39. Rd2 {[%clk 0:01:32]}  Rb3 {[%clk 0:00:50]} 40. Rd3 {[%clk 0:01:32]}  Rb2+ {[%clk 0:00:51]} 41. Ke3 {[%clk 0:01:33]}  Rb4 {[%clk 0:00:50]} 42. Ra3 {[%clk 0:01:33]}  Re4+ {[%clk 0:00:50]} 43. Kf3 {[%clk 0:01:33]}  Rb4 {[%clk 0:00:50]} 44. Ke3 {[%clk 0:01:33]}  Re4+ {[%clk 0:00:50]} 45. Kd3 {[%clk 0:01:33]}  Rb4 {[%clk 0:00:50]} 46. f3 {[%clk 0:01:32]}  Rb1 {[%clk 0:00:49]} 47. Ra6+ {[%clk 0:01:31]}  Kf7 {[%clk 0:00:47]} 48. Ke3 {[%clk 0:01:31]}  Rf1 {[%clk 0:00:46]} 49. Ra5 {[%clk 0:01:27]}  Kf6 {[%clk 0:00:46]} 50. g4 {[%clk 0:01:25]}  Rh1 {[%clk 0:00:28]} 51. Ra6+ {[%clk 0:01:14]}  Kg7 {[%clk 0:00:20]} 52. gxf5 {[%clk 0:01:12]}  gxf5 {[%clk 0:00:20]} 53. Kd4 {[%clk 0:01:12]}  Rxh4 {[%clk 0:00:15]} 54. Ke5 {[%clk 0:01:12]}  Rh3 {[%clk 0:00:16]} 55. Kxf5 {[%clk 0:01:08]}  Rxf3 {[%clk 0:00:16]} 56. Ra7+ {[%clk 0:01:08]}  Kh6 {[%clk 0:00:14]} 57. Ra6+ {[%clk 0:01:07]}  Kg7 {[%clk 0:00:13]} 58. Kg5 {[%clk 0:01:07]}  h4 {[%clk 0:00:13]} 59. f5 {[%clk 0:01:08]}  h3 {[%clk 0:00:13]} 60. Ra7+ {[%clk 0:01:08]}  Kf8 {[%clk 0:00:14]} 61. Kf6 {[%clk 0:00:59]}  Kg8 {[%clk 0:00:14]} 62. Ra8+ {[%clk 0:00:55]}  Kh7 {[%clk 0:00:14]} 63. Ra4 {[%clk 0:00:56]}  Kg8 {[%clk 0:00:10]} 64. Rh4 {[%clk 0:00:55]}  Kf8 {[%clk 0:00:10]} 65. Rh8# {[%clk 0:00:54]} 1-0


[Site "https://www.chess.com"]

[Event "Titled Tuesday Blitz July 26 Early 2022"]
[White "Seo, Jung Min"]
[Black "Averjanov, Alexey"]
[WhiteFideId "1734687"]
[BlackFideId "14109867"]
[WhiteElo "2414"]
[BlackElo "2651"]
[Result "*"]
[Round "08"]
[TimeControl "180+1"]
[Date "2022.07.26"]
[WhiteClock "0:02:14"]
[BlackClock "0:02:19"]

1. e4 {[%clk 0:03:00]}  c6 {[%clk 0:02:55]} 2. Nf3 {[%clk 0:02:59]}  d5 {[%clk 0:02:56]} 3. d3 {[%clk 0:02:59]}  Qc7 {[%clk 0:02:56]} 4. exd5 {[%clk 0:02:57]}  cxd5 {[%clk 0:02:57]} 5. c4 {[%clk 0:02:57]}  Nf6 {[%clk 0:02:57]} 6. Nc3 {[%clk 0:02:57]}  dxc4 {[%clk 0:02:57]} 7. dxc4 {[%clk 0:02:57]}  Bf5 {[%clk 0:02:57]} 8. Bd3 {[%clk 0:02:54]}  Bxd3 {[%clk 0:02:54]} 9. Qxd3 {[%clk 0:02:54]}  Nc6 {[%clk 0:02:55]} 10. O-O {[%clk 0:02:54]}  Rd8 {[%clk 0:02:54]} 11. Qe2 {[%clk 0:02:54]}  e6 {[%clk 0:02:54]} 12. Nb5 {[%clk 0:02:52]}  Qb8 {[%clk 0:02:53]} 13. g3 {[%clk 0:02:51]}  Bd6 {[%clk 0:02:50]} 14. Nxd6+ {[%clk 0:02:40]}  Qxd6 {[%clk 0:02:51]} 15. Bf4 {[%clk 0:02:40]}  Qe7 {[%clk 0:02:50]} 16. Rad1 {[%clk 0:02:39]}  O-O {[%clk 0:02:50]} 17. a3 {[%clk 0:02:36]}  a5 {[%clk 0:02:49]} 18. Ne5 {[%clk 0:02:36]}  Nxe5 {[%clk 0:02:45]} 19. Bxe5 {[%clk 0:02:36]}  h6 {[%clk 0:02:46]} 20. Bc3 {[%clk 0:02:34]}  b6 {[%clk 0:02:45]} 21. b4 {[%clk 0:02:34]}  Qc7 {[%clk 0:02:43]} 22. Bxf6 {[%clk 0:02:30]}  gxf6 {[%clk 0:02:43]} 23. Qg4+ {[%clk 0:02:29]}  Kh7 {[%clk 0:02:44]} 24. Qh4 {[%clk 0:02:26]}  axb4 {[%clk 0:02:42]} 25. axb4 {[%clk 0:02:26]}  Rxd1 {[%clk 0:02:35]} 26. Rxd1 {[%clk 0:02:25]}  Rd8 {[%clk 0:02:36]} 27. Rc1 {[%clk 0:02:23]}  Kg7 {[%clk 0:02:33]} 28. c5 {[%clk 0:02:22]}  bxc5 {[%clk 0:02:33]} 29. bxc5 {[%clk 0:02:22]}  Qc6 {[%clk 0:02:32]} 30. Qg4+ {[%clk 0:02:20]}  Kf8 {[%clk 0:02:31]} 31. Qf4 {[%clk 0:02:20]}  Kg7 {[%clk 0:02:30]} 32. h4 {[%clk 0:02:19]}  Rd5 {[%clk 0:02:29]} 33. Qg4+ {[%clk 0:02:19]}  Kf8 {[%clk 0:02:29]} 34. Qf4 {[%clk 0:02:15]}  Rxc5 {[%clk 0:02:19]} 35. Qb4 {[%clk 0:02:14]} *


[Site "https://www.chess.com"]

[Event "Titled Tuesday Blitz July 26 Early 2022"]
[White "Shohat, Yotam"]
[Black "Lubbe, Nikolas"]
[WhiteFideId "2813955"]
[BlackFideId "4694031"]
[WhiteElo "2119"]
[BlackElo "2447"]
[Result "0-1"]
[Round "08"]
[TimeControl "180+1"]
[Date "2022.07.26"]
[WhiteClock "0:00:02"]
[BlackClock "0:00:22"]

1. e4 {[%clk 0:03:00]}  c5 {[%clk 0:03:00]} 2. Nf3 {[%clk 0:02:57]}  Nc6 {[%clk 0:03:00]} 3. Bb5 {[%clk 0:02:57]}  g6 {[%clk 0:03:00]} 4. Bxc6 {[%clk 0:02:56]}  dxc6 {[%clk 0:02:59]} 5. d3 {[%clk 0:02:52]}  Bg7 {[%clk 0:03:00]} 6. h3 {[%clk 0:02:52]}  e5 {[%clk 0:02:59]} 7. Be3 {[%clk 0:02:50]}  Qe7 {[%clk 0:02:57]} 8. a4 {[%clk 0:02:31]}  Nf6 {[%clk 0:02:56]} 9. a5 {[%clk 0:02:30]}  Nd7 {[%clk 0:02:55]} 10. Nbd2 {[%clk 0:02:19]}  h6 {[%clk 0:02:48]} 11. Nb3 {[%clk 0:02:18]}  Rb8 {[%clk 0:02:45]} 12. Qd2 {[%clk 0:02:16]}  g5 {[%clk 0:02:29]} 13. h4 {[%clk 0:01:54]}  g4 {[%clk 0:02:25]} 14. Nh2 {[%clk 0:01:54]}  h5 {[%clk 0:02:26]} 15. Nf1 {[%clk 0:01:53]}  b6 {[%clk 0:02:24]} 16. axb6 {[%clk 0:01:51]}  axb6 {[%clk 0:02:24]} 17. Ng3 {[%clk 0:01:51]}  Nf8 {[%clk 0:02:23]} 18. O-O {[%clk 0:01:30]}  Ng6 {[%clk 0:02:18]} 19. Nf5 {[%clk 0:01:14]}  Bxf5 {[%clk 0:02:16]} 20. exf5 {[%clk 0:01:15]}  Nxh4 {[%clk 0:02:17]} 21. Bg5 {[%clk 0:01:15]}  Bf6 {[%clk 0:02:17]} 22. Ra7 {[%clk 0:01:08]}  Bxg5 {[%clk 0:01:48]} 23. Rxe7+ {[%clk 0:01:07]}  Bxe7 {[%clk 0:01:49]} 24. Qe3 {[%clk 0:01:04]}  Bf6 {[%clk 0:01:12]} 25. d4 {[%clk 0:00:37]}  cxd4 {[%clk 0:00:58]} 26. Nxd4 {[%clk 0:00:35]}  Kf8 {[%clk 0:00:49]} 27. Nxc6 {[%clk 0:00:33]}  Rc8 {[%clk 0:00:47]} 28. Qxb6 {[%clk 0:00:28]}  Kg7 {[%clk 0:00:47]} 29. b4 {[%clk 0:00:19]}  Nxf5 {[%clk 0:00:46]} 30. b5 {[%clk 0:00:20]}  h4 {[%clk 0:00:45]} 31. Qc5 {[%clk 0:00:08]}  h3 {[%clk 0:00:44]} 32. b6 {[%clk 0:00:05]}  Ne7 {[%clk 0:00:38]} 33. b7 {[%clk 0:00:03]}  Rxc6 {[%clk 0:00:38]} 34. Qb4 {[%clk 0:00:03]}  hxg2 {[%clk 0:00:22]} 35. Kxg2 {[%clk 0:00:03]}  Ng6 {[%clk 0:00:22]} 36. Qc4 {[%clk 0:00:02]}  Rxc4 {[%clk 0:00:22]} 0-1


[Site "https://www.chess.com"]

[Event "Titled Tuesday Blitz July 26 Early 2022"]
[White "Shtyka, Sergey"]
[Black "Plazuelo Pascual, Juan"]
[WhiteFideId "4138465"]
[BlackFideId "32059566"]
[WhiteElo "1995"]
[BlackElo "2416"]
[Result "0-1"]
[Round "08"]
[TimeControl "180+1"]
[Date "2022.07.27"]
[WhiteClock "0:00:01"]
[BlackClock "0:00:45"]

1. e4 {[%clk 0:03:00]}  c5 {[%clk 0:02:59]} 2. Nf3 {[%clk 0:03:00]}  e6 {[%clk 0:03:00]} 3. d4 {[%clk 0:03:00]}  cxd4 {[%clk 0:03:01]} 4. Nxd4 {[%clk 0:03:01]}  Nf6 {[%clk 0:03:00]} 5. Nc3 {[%clk 0:03:01]}  Nc6 {[%clk 0:03:01]} 6. Ndb5 {[%clk 0:03:00]}  Bb4 {[%clk 0:03:00]} 7. a3 {[%clk 0:03:01]}  Bxc3+ {[%clk 0:03:00]} 8. Nxc3 {[%clk 0:03:01]}  d5 {[%clk 0:03:01]} 9. exd5 {[%clk 0:03:02]}  exd5 {[%clk 0:03:01]} 10. Bd3 {[%clk 0:03:01]}  O-O {[%clk 0:03:02]} 11. O-O {[%clk 0:03:02]}  Bg4 {[%clk 0:03:02]} 12. f3 {[%clk 0:03:01]}  Bh5 {[%clk 0:02:59]} 13. Kh1 {[%clk 0:02:57]}  Qb6 {[%clk 0:02:19]} 14. Bg5 {[%clk 0:02:46]}  Ne4 {[%clk 0:02:18]} 15. Nxe4 {[%clk 0:02:09]}  dxe4 {[%clk 0:02:18]} 16. Bxe4 {[%clk 0:02:09]}  Qxb2 {[%clk 0:02:18]} 17. Rb1 {[%clk 0:01:53]}  Qxa3 {[%clk 0:02:18]} 18. Rxb7 {[%clk 0:01:52]}  Rac8 {[%clk 0:02:15]} 19. Qa1 {[%clk 0:01:37]}  Qxa1 {[%clk 0:02:11]} 20. Rxa1 {[%clk 0:01:36]}  Bg6 {[%clk 0:02:12]} 21. Bd5 {[%clk 0:01:17]}  h6 {[%clk 0:01:48]} 22. Be3 {[%clk 0:01:15]}  a5 {[%clk 0:01:43]} 23. c4 {[%clk 0:01:10]}  Nb4 {[%clk 0:01:41]} 24. Bb6 {[%clk 0:00:28]}  a4 {[%clk 0:01:28]} 25. h4 {[%clk 0:00:25]}  Rb8 {[%clk 0:01:18]} 26. Bc5 {[%clk 0:00:20]}  Nxd5 {[%clk 0:01:16]} 27. Rxb8 {[%clk 0:00:18]}  Rxb8 {[%clk 0:01:17]} 28. cxd5 {[%clk 0:00:19]}  Rb5 {[%clk 0:01:16]} 29. Be7 {[%clk 0:00:13]}  Bc2 {[%clk 0:01:08]} 30. d6 {[%clk 0:00:13]}  Rd5 {[%clk 0:01:08]} 31. Kg1 {[%clk 0:00:11]}  f6 {[%clk 0:01:07]} 32. Kf2 {[%clk 0:00:10]}  Kf7 {[%clk 0:01:04]} 33. Ke3 {[%clk 0:00:10]}  Rd3+ {[%clk 0:01:04]} 34. Ke2 {[%clk 0:00:10]}  Rd4 {[%clk 0:00:57]} 35. g3 {[%clk 0:00:09]}  h5 {[%clk 0:00:57]} 36. Ke3 {[%clk 0:00:08]}  Rd3+ {[%clk 0:00:57]} 37. Ke2 {[%clk 0:00:08]}  a3 {[%clk 0:00:51]} 38. Ra2 {[%clk 0:00:06]}  Bb1 {[%clk 0:00:51]} 39. f4 {[%clk 0:00:01]}  Rxg3 {[%clk 0:00:45]} 40. Ra1 {[%clk 0:00:01]}  a2 {[%clk 0:00:45]} 0-1


[Site "https://www.chess.com"]